bitfinex-derivatives/quotes_ETHF0:USTF0_20250906
["timestamp","ask_amount","ask_price","bid_price","bid_amount"]
[1757186260741,0.117,4269.9,4269.8,4.7065]
[1757186260943,3.2078,4270.5,4270.4,0.4111]
[1757186261141,3.2078,4270.5,4270.4,0.9425]
[1757186261334,3.4138,4270.5,4270.4,0.9425]
[1757186261640,3.933,4270.5,4270.4,0.9425]
[1757186261840,0.7252,4270.5,4270.4,0.9425]
[1757186262842,0.7252,4270.5,4270.4,0.7065]
[1757186263045,0.7252,4270.5,4270.4,0.9425]
[1757186263834,0.7252,4270.5,4270.4,0.7065]
[1757186264542,0.8474,4270.5,4270.4,0.2118]
[1757186264838,0.8474,4270.5,4270.3,0.236]
[1757186265141,0.7252,4270.3,4270.2,0.7432]
[1757186265340,0.7252,4270.3,4270.2,0.5072]
[1757186266334,0.7252,4270.3,4270.2,0.7065]
[1757186267239,0.7252,4270.3,4270.2,0.2118]
[1757186267431,0.7252,4269.9,4269.8,0.7065]
[1757186267638,0.7252,4269.9,4269.8,0.9425]
[1757186269443,0.7252,4269.9,4269.8,0.7065]
[1757186271143,0.1955,4269.4,4269.3,0.7171]
[1757186271448,0.5136,4269.4,4269.3,0.9531]
[1757186272047,0.7123,4269.4,4269.3,0.9531]
[1757186273436,0.7123,4269.4,4269.3,0.7171]
[1757186275051,3.33,4270.0,4269.3,0.7171]
[1757186275250,0.97690264,4269.9,4269.8,0.3998]
[1757186275453,0.97690264,4269.9,4269.8,0.1948]
[1757186275854,1.29500264,4269.9,4269.8,0.1948]
[1757186277155,0.7123,4269.9,4269.8,0.1948]
[1757186277855,0.7123,4269.9,4269.6,0.3173]
[1757186278062,0.7123,4269.9,4269.8,0.1948]
[1757186281258,0.7123,4269.9,4269.8,0.7171]
[1757186287859,0.3181,4269.8,4269.3,0.3173]
[1757186288057,0.5136,4269.4,4269.3,0.95132]
[1757186288863,0.5136,4269.4,4269.3,0.7171]
[1757186289165,0.5136,4269.4,4269.2,5.4113587]
[1757186289166,0.7123,4269.3,4269.2,1.9675587]
[1757186289366,1.5289758,4269.3,4269.2,0.74815153]
[1757186290265,5.7659758,4269.3,4269.2,0.74815153]
[1757186290460,1.72625574,4269.3,4269.2,0.94295153]
[1757186291557,1.72625574,4269.3,4269.2,1.26025153]
[1757186292368,1.72625574,4269.3,4269.2,0.94295153]
[1757186292564,1.72625574,4269.3,4269.2,0.74815153]
[1757186292969,5.72625574,4269.3,4269.2,0.74815153]
[1757186293565,1.96048574,4269.3,4269.2,0.05005153]
[1757186293759,1.96048574,4269.3,4268.3,0.3173]
[1757186293760,5.96048574,4269.3,4268.3,0.3173]
[1757186293973,5.96048574,4269.3,4268.1,0.3173]
[1757186293974,3.2078,4268.4,4268.1,0.3173]
[1757186294169,0.19450994,4268.3,4267.8,0.3173]
[1757186294376,3.2078,4267.9,4267.5,0.446]
[1757186294569,0.43150994,4267.8,4267.1,0.5121]
[1757186294761,3.2078,4267.4,4267.1,0.3173]
[1757186294965,0.19450994,4267.3,4267.2,0.3173]
[1757186295167,0.19450994,4267.3,4267.0,0.1287]
[1757186295168,0.19450994,4267.3,4267.0,0.446]
[1757186295367,0.19450994,4267.2,4267.0,0.446]
[1757186295567,0.19416345,4267.1,4267.0,0.446]
[1757186295975,0.19416345,4267.1,4267.0,0.6408]
[1757186296167,3.4448,4267.4,4267.0,0.3173]
[1757186296468,0.19400194,4267.3,4266.7,0.32331417]
[1757186296669,3.4448,4267.4,4266.8,0.3173]
[1757186296670,0.19400194,4267.2,4266.8,0.3173]
[1757186296873,0.237,4267.1,4267.0,0.1287]
[1757186297070,0.237,4267.1,4267.0,0.446]
[1757186297264,0.1286,4265.9,4264.5,0.446]
[1757186297464,0.0643,4265.0,4264.2,0.205]
[1757186297663,0.0643,4265.0,4264.0,0.1287]
[1757186297664,3.2078,4264.7,4264.6,0.3173]
[1757186297873,3.2078,4264.7,4264.6,0.7171]
[1757186298172,3.2078,4265.2,4265.1,0.3173]
[1757186298478,3.2078,4265.2,4265.1,0.7171]
[1757186304285,3.2078,4265.8,4265.1,0.3998]
[1757186304489,3.2078,4265.8,4265.2,0.2973]
[1757186305089,0.1939,4264.7,4264.6,0.7038]
[1757186305289,3.2078,4264.8,4264.7,0.2973]
[1757186305480,3.2078,4264.8,4264.7,0.7038]
[1757186306396,0.1939,4265.2,4265.1,0.7038]
[1757186307080,0.3889,4265.2,4265.1,0.4916]
[1757186307286,0.3889,4265.6,4265.5,0.1215]
[1757186307486,0.3889,4265.6,4265.5,0.528]
[1757186307888,0.3889,4265.6,4265.5,0.8253]
[1757186308084,0.3889,4265.6,4265.5,0.6131]
[1757186308287,0.5179,4265.6,4265.5,0.6131]
[1757186309298,0.5179,4265.6,4265.5,0.4188]
[1757186310391,0.1178,4265.5,4264.6,0.132]
[1757186310593,3.7193,4265.0,4264.9,0.4065]
[1757186311801,3.5254,4265.0,4264.9,0.4065]
[1757186312496,3.5254,4265.0,4264.9,0.7038]
[1757186312801,3.7193,4265.0,4264.9,0.7038]
[1757186313096,4.0321,4265.0,4264.9,0.7038]
[1757186313501,4.0321,4265.0,4264.9,0.4065]
[1757186314607,4.0321,4265.0,4264.5,0.17]
[1757186315103,4.0321,4265.0,4264.1,0.2973]
[1757186315304,4.0321,4265.0,4264.2,0.127]
[1757186315802,4.0321,4265.0,4264.3,0.2973]
[1757186316708,3.7193,4264.4,4264.3,0.7038]
[1757186317602,3.2078,4264.4,4264.3,4.7038]
[1757186318806,3.2078,4264.4,4264.3,4.9448]
[1757186319206,3.6432,4265.0,4264.9,0.4065]
[1757186319410,3.6432,4265.0,4264.9,0.5372]
[1757186320901,3.8371,4265.0,4264.9,0.5372]
[1757186321501,3.5254,4265.0,4264.9,0.5372]
[1757186321695,3.2078,4265.0,4264.9,0.5372]
[1757186322209,4.30180642,4265.0,4264.9,0.5372]
[1757186323210,4.5090348,4265.0,4264.9,0.5372]
[1757186323404,4.8207348,4265.0,4264.9,0.5372]
[1757186323908,4.80850642,4265.0,4264.9,0.2893]
[1757186324711,4.80850642,4265.0,4264.9,0.178]
[1757186326107,4.80850642,4265.0,4264.9,0.5845]
[1757186327701,4.80850642,4265.0,4264.3,0.2479]
[1757186327902,0.3889,4264.4,4264.3,0.1943]
[1757186328104,0.54879549,4264.4,4264.3,0.8954]
[1757186328406,0.86639549,4264.4,4264.3,0.8954]
[1757186329104,1.48063029,4264.4,4264.3,0.8954]
[1757186329304,0.86639549,4264.4,4264.3,0.8954]
[1757186329808,0.86639549,4264.4,4264.3,0.6475]
[1757186329809,1.48065434,4264.4,4264.3,0.6475]
[1757186330008,0.86639549,4264.4,4264.3,0.6475]
[1757186330209,0.7065,4264.4,4264.3,0.6475]
[1757186330710,0.3176,4264.4,4264.3,4.8955]
[1757186331314,0.5198,4264.4,4264.3,4.8955]
[1757186332813,0.68048073,4264.4,4264.3,4.8955]
[1757186333013,0.5198,4264.4,4264.3,4.8955]
[1757186334417,0.7214,4264.4,4264.3,4.6475]
[1757186334819,0.7214,4264.4,4264.3,4.8955]
[1757186336418,0.88216544,4264.4,4264.3,4.8955]
[1757186336919,0.68056544,4264.4,4264.3,4.8955]
[1757186339521,0.47836544,4264.4,4264.3,4.8955]
[1757186339922,0.16076544,4264.4,4264.3,4.8955]
[1757186340110,0.46956603,4264.4,4264.3,4.8955]
[1757186343732,0.67176603,4264.4,4264.3,4.8955]
[1757186343931,0.15986603,4264.4,4264.3,0.8955]
[1757186344328,0.67176603,4264.4,4264.3,0.8955]
[1757186345127,0.5119,4264.4,4264.3,0.8955]
[1757186349231,3.2078,4265.0,4264.8,0.4009]
[1757186349434,3.2078,4265.0,4264.9,0.8889]
[1757186351637,3.5175,4265.0,4264.9,0.8889]
[1757186352333,0.3097,4265.7,4265.3,0.82282]
[1757186352539,0.5119,4265.9,4265.8,0.4009]
[1757186352736,0.67283232,4265.9,4265.8,0.6409]
[1757186353237,0.87443232,4265.9,4265.8,0.6409]
[1757186354738,0.7135,4265.9,4265.8,0.6409]
[1757186355035,0.7135,4265.9,4265.8,0.8889]
[1757186355637,0.7135,4265.9,4265.8,0.6409]
[1757186357039,0.7135,4265.9,4265.8,0.8889]
[1757186358440,0.3097,4266.0,4265.9,0.248]
[1757186358635,0.3097,4266.0,4265.9,0.6489]
[1757186359033,0.836,4266.0,4265.9,0.4009]
[1757186360643,0.836,4266.0,4265.9,0.6399]
[1757186361848,0.4331,4266.0,4265.9,0.8877]
[1757186362040,0.6391,4266.0,4265.9,0.8877]
[1757186362536,0.8398,4266.0,4265.9,0.6399]
[1757186363942,0.4331,4266.0,4265.9,0.6399]
[1757186364138,3.2078,4266.6,4265.9,0.8877]
[1757186364341,0.3094,4266.4,4266.3,0.6394]
[1757186364537,0.3094,4266.4,4266.3,0.8784]
[1757186365447,0.5154,4266.4,4266.3,0.8784]
[1757186365642,0.7161,4266.4,4266.3,0.3916]
[1757186365848,0.7161,4266.4,4266.3,0.4338]
[1757186367448,0.7161,4266.4,4266.3,0.1948]
[1757186367651,0.7161,4266.4,4266.3,0.6306]
[1757186376052,0.7161,4266.4,4266.3,0.8783]
[1757186378057,0.7161,4266.4,4266.3,0.6306]
[1757186386261,0.7161,4266.4,4266.3,0.8783]
[1757186387156,0.7161,4266.4,4266.3,0.6306]
[1757186389458,0.8466,4266.0,4265.9,0.2096]
[1757186389663,0.3114,4265.9,4265.8,2.08217617]
[1757186389860,0.7207,4265.9,4265.8,0.238]
[1757186390963,0.7207,4265.9,4265.8,0.4476]
[1757186392472,0.7207,4265.9,4265.8,0.9062]
[1757186393164,0.7207,4265.9,4265.8,0.6585]
[1757186403064,3.2078,4266.5,4265.9,0.3058]
[1757186403266,0.2091,4266.5,4266.4,0.7263]
[1757186403470,0.57026105,4266.5,4266.4,0.9643]
[1757186404183,0.2091,4266.5,4266.4,0.9643]
[1757186405067,0.5306,4267.0,4266.9,0.2096]
[1757186405267,0.6915697,4267.0,4266.9,0.7534]
[1757186405576,1.0029697,4267.0,4266.9,0.7534]
[1757186407578,0.8816697,4267.0,4266.9,0.9643]
[1757186408581,1.0075697,4267.0,4266.9,0.7534]
[1757186409975,3.2078,4267.6,4266.9,0.6585]
[1757186410278,3.4826,4267.6,4267.5,0.6383]
[1757186410479,3.4826,4267.6,4267.5,0.8763]
[1757186411078,3.4826,4267.6,4267.5,1.0872]
[1757186412272,3.5685,4267.6,4267.5,0.8763]
[1757186415789,3.4826,4267.6,4267.5,1.0872]
[1757186415994,3.2078,4267.6,4267.5,1.0872]
[1757186416693,0.0859,4268.4,4267.6,0.3058]
[1757186416991,0.2748,4268.1,4268.0,0.6383]
[1757186418389,0.2748,4268.1,4267.6,0.3058]
[1757186418587,0.2748,4267.6,4267.5,0.6383]
[1757186418788,0.2748,4267.6,4267.5,0.8753]
[1757186419294,0.2748,4267.6,4267.5,0.6383]
[1757186419487,0.2748,4267.6,4267.5,0.8753]
[1757186420094,0.2748,4267.6,4267.5,1.0862]
[1757186421096,0.3604,4268.1,4268.0,0.1225]
[1757186421294,0.3604,4268.1,4268.0,0.6633]
[1757186421597,0.2746,4267.6,4267.5,0.6317]
[1757186421789,0.1373,4267.6,4267.5,1.0627]
[1757186423490,0.2746,4268.1,4268.0,0.1225]
[1757186423689,0.2746,4268.1,4268.0,0.8683]
[1757186424196,0.3604,4268.1,4268.0,0.8683]
[1757186425097,0.2746,4268.1,4268.0,1.0623]
[1757186425291,3.2078,4268.5,4268.1,0.3038]
[1757186425594,3.4824,4268.5,4268.4,0.5088]
[1757186425798,3.63690035,4268.5,4268.4,0.5088]
[1757186427188,3.72270035,4268.5,4268.4,0.5088]
[1757186427792,0.51490035,4268.5,4268.4,0.5088]
[1757186428297,0.29180035,4268.5,4268.4,0.7028]
[1757186428699,0.42910035,4268.5,4268.4,0.7028]
[1757186431598,0.1373,4268.5,4268.4,0.7028]
[1757186431800,0.4438,4268.9,4268.8,0.5088]
[1757186431998,0.59835671,4268.9,4268.8,0.5088]
[1757186432999,0.68395671,4268.9,4268.8,0.5088]
[1757186433191,0.68395671,4268.9,4268.8,0.3038]
[1757186435298,0.59835671,4268.9,4268.8,0.7028]
[1757186435596,0.32455671,4268.9,4268.8,0.7028]
[1757186435798,0.17,4268.9,4268.8,0.7028]
[1757186435999,0.4438,4268.9,4268.8,0.9398]
[1757186436194,0.3069,4268.9,4268.8,0.9398]
[1757186436503,0.17,4268.9,4268.8,0.9398]
[1757186436697,0.3069,4268.9,4268.8,0.7028]
[1757186436899,0.3069,4268.9,4268.8,0.9398]
[1757186439609,0.17,4268.9,4268.8,0.9398]
[1757186440910,0.17,4268.9,4268.8,4.1476]
[1757186443107,3.2078,4270.1,4269.0,1.05391]
[1757186443415,0.7193,4270.1,4270.0,3.2078]
[1757186443718,0.7193,4270.1,4270.0,3.4468]
[1757186443905,0.5055,4270.1,4270.0,3.4468]
[1757186444106,0.2906,4270.1,4270.0,3.73602821]
[1757186445210,0.2906,4270.1,4270.0,3.49702821]
[1757186445409,0.5055,4270.1,4270.0,3.73602821]
[1757186448618,0.5457,4271.0,4270.9,0.399]
[1757186448815,0.5457,4271.0,4270.9,0.73322821]
[1757186450719,0.8667,4271.0,4270.9,0.73322821]
[1757186451624,0.8582,4271.0,4270.9,1.25852821]
[1757186451926,0.8582,4271.0,4270.9,0.94192821]
[1757186455524,0.8582,4271.0,4270.9,0.28922821]
[1757186455724,0.8582,4271.0,4270.9,0.52822821]
[1757186457117,0.8582,4271.0,4270.9,0.74192821]
[1757186459019,0.8576,4271.0,4270.9,0.95062821]
[1757186460629,0.8576,4271.0,4270.9,0.52822821]
[1757186464221,0.8576,4271.0,4270.9,0.28922821]
[1757186464424,4.8576,4271.0,4270.9,0.28922821]
[1757186465322,4.8576,4271.0,4270.8,0.239]
[1757186466128,0.321,4270.9,4270.7,0.239]
[1757186466326,0.7326,4270.8,4270.7,0.239]
[1757186467026,0.87351778,4270.8,4270.7,0.239]
[1757186467726,0.87351778,4270.8,4270.1,3.2078]
[1757186467727,0.7326,4270.2,4270.1,3.2078]
[1757186468132,0.7326,4270.2,4270.1,3.4468]
[1757186468826,0.7326,4270.2,4270.1,3.2078]
[1757186469027,0.7326,4270.2,4270.1,3.4468]
[1757186469828,0.7326,4270.2,4270.1,3.2078]
[1757186470028,0.7326,4270.2,4270.1,3.4468]
[1757186470232,0.7326,4270.2,4270.1,3.6605]
[1757186470626,0.5353,4270.2,4270.1,4.1858]
[1757186470828,0.7326,4270.2,4270.1,3.6302]
[1757186471135,0.8737647,4270.2,4270.1,3.8692]
[1757186472229,0.8737647,4270.2,4270.1,4.1858]
[1757186473637,0.7326,4270.2,4270.1,4.1858]
[1757186473837,0.1412899,4270.2,4270.1,4.1858]
[1757186475241,3.3328,4271.0,4270.1,3.8692]
[1757186475540,1.06856939,4270.9,4270.2,0.3166]
[1757186475742,1.48016939,4270.8,4270.7,0.2137]
[1757186483642,0.7058,4270.2,4270.1,3.2078]
[1757186483842,0.7058,4270.2,4270.1,3.6479]
[1757186484837,0.84708158,4270.2,4270.1,3.6479]
[1757186486543,0.84708158,4270.2,4270.1,3.9676]
[1757186487144,0.84708158,4270.2,4270.1,4.1668]
[1757186492244,0.14128158,4270.2,4270.1,8.40098]
[1757186492551,0.3032,4270.9,4270.2,0.2664]
[1757186492755,0.5033,4270.3,4270.2,0.6667]
[1757186492958,0.3032,4270.9,4270.3,0.2664]
[1757186493252,0.3032,4271.4,4271.3,0.4003]
[1757186493442,0.90420017,4271.4,4271.3,0.9047]
[1757186493644,0.3032,4271.4,4271.3,0.9047]
[1757186498157,0.3032,4271.4,4271.3,0.6667]
[1757186498357,0.3032,4271.4,4271.3,0.9047]
[1757186499764,0.5033,4271.4,4271.3,0.9047]
[1757186500463,0.2857,4272.0,4271.9,0.6667]
[1757186500652,0.2857,4272.0,4271.9,0.9047]
[1757186501054,0.5889,4272.0,4271.9,0.9047]
[1757186502459,0.3032,4272.4,4272.3,0.4003]
[1757186502762,0.3032,4272.4,4272.3,0.9047]
[1757186502960,0.5033,4272.4,4272.3,0.9047]
[1757186503262,0.3032,4272.4,4272.3,0.9047]
[1757186503662,0.5033,4272.4,4272.3,0.9047]
[1757186505161,0.1174,4273.0,4272.3,0.9047]
[1757186505365,0.3032,4272.8,4272.3,0.9047]
[1757186505563,0.3175,4272.5,4272.4,0.6667]
[1757186505865,0.6207,4272.5,4272.4,0.6667]
[1757186507363,0.1174,4273.0,4272.5,0.2664]
[1757186507664,0.5033,4272.9,4272.8,0.6667]
[1757186507853,0.5033,4272.9,4272.8,0.9047]
[1757186509362,0.6981,4272.9,4272.3,3.2078]
[1757186509562,0.8246,4272.5,4272.4,0.6483]
[1757186509759,0.8246,4272.5,4272.4,0.9144]
[1757186510559,0.8246,4272.5,4272.4,0.238]
[1757186510560,0.6307,4272.5,4272.4,0.238]
[1757186510758,0.8246,4272.5,4271.7,3.4739]
[1757186510965,0.8246,4272.0,4271.9,0.2027]
[1757186511466,0.8246,4272.0,4271.9,0.4407]
[1757186511666,0.8246,4272.0,4271.9,0.238]
[1757186515262,0.8246,4272.0,4271.7,3.2078]
[1757186515468,0.7,4271.9,4271.8,0.238]
[1757186516366,0.7,4271.9,4271.8,0.4407]
[1757186519270,0.7,4271.9,4271.8,0.238]
[1757186524677,0.7,4271.9,4271.8,0.4407]
[1757186525182,0.7,4271.9,4271.8,0.238]
[1757186530184,0.83530361,4271.9,4271.8,0.238]
[1757186534280,0.64050361,4271.9,4271.8,1.14849]
[1757186534585,0.83530361,4271.9,4271.8,0.6483]
[1757186538984,0.83530361,4271.9,4271.8,0.9146]
[1757186539486,0.44660361,4271.9,4271.8,0.9146]
[1757186540190,0.64070361,4271.9,4271.8,0.9146]
[1757186541491,0.13530361,4271.9,4271.8,0.9146]
[1757186542492,0.13530361,4271.9,4271.8,1.14869]
[1757186542688,0.1246,4272.5,4271.8,0.9146]
[1757186542889,1.05986203,4272.4,4272.3,0.6793]
[1757186543100,0.45388085,4272.4,4272.3,0.6793]
[1757186543285,0.45388085,4272.4,4272.3,0.9163]
[1757186543485,0.64798085,4272.4,4272.3,0.9163]
[1757186546498,0.64798085,4272.4,4272.3,0.6793]
[1757186546691,0.84798085,4272.4,4272.3,0.52571606]
[1757186547695,0.84798085,4272.4,4272.3,0.73661606]
[1757186548199,0.84786923,4272.4,4272.3,0.73661606]
[1757186549594,5.68727932,4272.4,4271.7,3.2078]
[1757186549801,0.7125,4271.8,4271.7,3.2078]
[1757186549996,0.7125,4271.8,4271.7,3.4448]
[1757186550196,0.7125,4271.8,4271.7,3.7645]
[1757186550698,0.84783236,4271.8,4271.7,3.7645]
[1757186550897,0.84783236,4271.8,4271.7,3.5275]
[1757186551103,0.84783236,4271.8,4271.7,3.9754]
[1757186553802,0.84783236,4271.8,4271.7,3.7645]
[1757186554506,0.84783236,4271.8,4271.7,3.9754]
[1757186554807,0.84783236,4271.8,4271.7,3.7645]
[1757186555306,0.84779503,4271.8,4271.7,3.9754]
[1757186556104,0.84779503,4271.8,4271.7,4.1775]
[1757186557408,0.84779503,4271.8,4271.7,3.7384]
[1757186557608,0.84779503,4271.8,4271.7,0.7676]
[1757186558900,0.84779503,4271.8,4271.7,0.5306]
[1757186559110,0.84779503,4271.8,4271.7,0.237]
[1757186561310,0.84779503,4271.8,4271.7,0.5567]
[1757186561511,0.84779503,4271.8,4271.7,0.7676]
[1757186561721,0.3184,4271.7,4271.6,0.237]
[1757186562008,0.84779503,4271.7,4271.6,0.7676]
[1757186564605,0.84779503,4271.7,4271.6,0.9697]
[1757186566114,0.8476995,4271.7,4271.6,0.9697]
[1757186573418,0.84767393,4271.7,4271.6,0.9697]
[1757186574519,0.13517393,4271.7,4271.6,0.9697]
[1757186581519,3.4207,4272.6,4272.5,0.824]
[1757186581720,0.81976863,4272.6,4272.5,0.824]
[1757186581920,0.60686863,4272.6,4272.5,0.824]
[1757186582413,0.5223,4272.6,4272.5,0.824]
[1757186582822,0.3094,4272.9,4272.5,0.824]
[1757186583021,1.12886486,4272.8,4272.7,0.6968]
[1757186583820,1.34126486,4272.8,4272.7,0.6968]
[1757186585226,0.7347,4272.8,4272.7,0.6968]
[1757186585526,1.34050175,4272.8,4272.7,0.6968]
[1757186586025,0.7347,4272.8,4272.7,0.6968]
[1757186593630,0.86546158,4272.8,4272.7,0.6968]
[1757186607849,0.86546158,4272.8,4272.2,3.2078]
[1757186608044,0.4193,4272.4,4272.3,0.1997]
[1757186608352,0.63696158,4272.4,4272.3,0.9501]
[1757186610148,0.84496158,4272.4,4272.3,0.9501]
[1757186613549,0.34206158,4272.4,4272.3,0.9501]
[1757186613849,0.13076158,4272.4,4272.3,0.9501]
[1757186615457,0.63696158,4272.4,4272.3,0.9501]
[1757186619545,0.34206158,4272.4,4272.3,0.7131]
[1757186619748,0.84496158,4272.4,4272.3,0.9501]
[1757186625263,0.84496158,4272.4,4272.3,0.7131]
[1757186625564,0.84496158,4272.4,4272.3,0.9501]
[1757186626477,0.63696158,4272.4,4272.3,0.9501]
[1757186629671,0.34206158,4272.4,4272.3,0.9501]
[1757186630166,0.66256158,4272.4,4272.3,0.9501]
[1757186631464,0.34206158,4272.4,4272.3,0.9501]
[1757186632269,0.13076158,4272.4,4272.3,0.9501]
[1757186635557,0.1953,4272.5,4272.4,0.7172]
[1757186635765,0.5158,4272.5,4272.4,0.7172]
[1757186636766,0.1953,4272.5,4272.4,0.7172]
[1757186639070,0.7255,4272.5,4272.4,0.7172]
[1757186639267,0.7255,4272.5,4272.4,0.9542]
[1757186641069,0.7255,4272.5,4272.4,0.7172]
[1757186641271,0.7255,4272.5,4272.4,0.9542]
[1757186641473,0.7255,4272.5,4272.4,0.7172]
[1757186641672,0.7255,4272.5,4272.4,0.9542]
[1757186642372,0.7255,4272.5,4272.4,0.7172]
[1757186642574,0.7255,4272.5,4272.4,0.9542]
[1757186643973,0.3205,4272.9,4272.5,0.4397]
[1757186644276,0.7255,4273.4,4273.3,0.2058]
[1757186644574,1.46319224,4273.4,4273.3,0.7578]
[1757186645579,1.46319224,4273.4,4273.3,0.9542]
[1757186646277,0.85719804,4273.4,4273.3,0.9542]
[1757186652977,0.85719804,4273.4,4273.3,0.7172]
[1757186653278,0.85719804,4273.4,4273.3,0.7578]
[1757186658780,0.85719804,4273.4,4273.3,0.5208]
[1757186658980,0.85719804,4273.4,4273.3,0.7578]
[1757186659181,0.85719804,4273.4,4273.3,0.5208]
[1757186659477,0.85719804,4273.4,4273.3,0.7578]
[1757186661376,0.85719804,4273.4,4273.3,0.9582]
[1757186665086,1.46330092,4273.4,4273.3,0.9582]
[1757186668683,1.46330092,4273.4,4273.3,0.7212]
[1757186675692,1.46330092,4273.4,4273.3,0.5208]
[1757186679391,1.46333052,4273.4,4273.3,0.5208]
[1757186680197,1.14283052,4273.4,4272.8,3.2078]
[1757186680396,0.7265,4272.9,4272.8,3.6415]
[1757186680696,1.46433052,4272.9,4272.8,3.9378]
[1757186682200,0.85822764,4272.9,4272.8,3.9378]
[1757186682400,0.85822764,4272.9,4272.8,3.6415]
[1757186682601,0.85822764,4272.9,4272.8,3.4448]
[1757186683095,0.85814978,4272.9,4272.8,3.4448]
[1757186684396,0.85814978,4272.9,4272.8,3.6415]
[1757186684695,0.85814978,4272.9,4272.8,3.9378]
[1757186684897,0.85811813,4272.9,4272.8,3.9378]
[1757186686001,0.85811813,4272.9,4272.8,3.7008]
[1757186686298,0.85811813,4272.9,4272.8,3.9378]
[1757186686802,0.85811813,4272.9,4272.8,3.7008]
[1757186686995,0.85811813,4272.9,4272.8,3.9378]
[1757186691809,0.85811813,4272.9,4272.8,4.1325]
[1757186694614,0.2043,4272.4,4272.3,0.4328]
[1757186694816,0.64061813,4272.4,4272.3,0.9417]
[1757186697618,0.64045715,4272.4,4272.3,0.9417]
[1757186700621,0.85475715,4272.4,4272.3,0.9417]
[1757186701911,0.13145715,4272.4,4272.3,0.9417]
[1757186702218,0.3047,4273.1,4273.0,0.7047]
[1757186702219,0.7233,4273.1,4273.0,0.7047]
[1757186702518,1.4600759,4273.1,4273.0,0.7047]
[1757186702720,0.9410759,4273.1,4273.0,0.8285]
[1757186702914,0.1314278,4273.1,4273.0,1.06251999]
[1757186703119,0.509,4274.0,4273.9,0.7047]
[1757186703421,1.46018775,4274.0,4273.9,0.7047]
[1757186707525,1.58248775,4274.0,4273.9,0.7047]
[1757186710626,1.58248775,4274.0,4273.6,0.3142]
[1757186710930,0.7233,4273.6,4273.5,0.5143]
[1757186711131,1.46018775,4273.6,4273.5,0.3905]
[1757186711333,1.46018775,4273.6,4273.5,0.7047]
[1757186716337,0.1223,4273.5,4273.1,0.3142]
[1757186716539,0.7233,4273.2,4273.1,0.51]
[1757186716740,0.85474444,4273.2,4273.1,0.51]
[1757186717641,1.46002419,4273.2,4273.1,0.51]
[1757186718734,1.46002419,4273.2,4272.7,3.4448]
[1757186718735,0.4186,4272.8,4272.7,3.9125]
[1757186718930,0.7129,4272.8,4272.7,3.9125]
[1757186719739,0.84430545,4272.8,4272.7,0.7047]
[1757186720640,0.84430596,4272.8,4272.7,0.7047]
[1757186721341,0.7129,4272.8,4272.7,0.7047]
[1757186722032,0.85356865,4272.8,4272.7,0.7047]
[1757186724237,0.34496865,4272.8,4272.7,0.7047]
[1757186724451,0.14066865,4272.8,4272.7,0.7047]
[1757186726441,0.14066865,4272.8,4272.7,0.9417]
[1757186729041,0.64916865,4272.8,4272.7,0.9417]
[1757186730346,0.84896865,4272.8,4272.7,0.9407]
[1757186737152,0.2943,4272.3,4272.2,3.7484]
[1757186737348,4.36790932,4272.3,4270.7,5.28997617]
[1757186737652,3.2078,4271.5,4270.6,0.5128]
[1757186737850,3.2078,4271.3,4270.7,0.2082]
[1757186738050,0.74610932,4271.2,4270.8,0.5128]
[1757186738258,0.74610932,4271.1,4271.0,0.1281]
[1757186738557,0.74610932,4271.1,4271.0,0.4327]
[1757186738746,4.74610932,4271.1,4271.0,0.4327]
[1757186738947,4.74610932,4271.1,4270.6,0.3046]
[1757186739146,0.74610932,4271.0,4270.6,0.3046]
[1757186739347,0.14066865,4270.9,4270.7,0.3046]
[1757186739549,0.14066865,4270.8,4270.7,0.3046]
[1757186740156,0.14066865,4270.8,4270.7,0.5128]
[1757186741151,3.2078,4271.3,4270.7,0.2082]
[1757186741453,0.75161223,4271.2,4270.5,0.3363]
[1757186741653,0.75159279,4271.1,4270.6,0.3046]
[1757186741851,3.2078,4270.8,4270.3,0.3046]
[1757186742157,0.98759279,4270.7,4270.0,0.4327]
[1757186742358,3.2078,4270.1,4270.0,0.4327]
[1757186743559,7.2078,4270.1,4270.0,0.3046]
[1757186748862,7.2135,4270.1,4270.0,0.3046]
[1757186749063,7.4505,4270.1,4270.0,0.3046]
[1757186749263,7.4505,4270.1,4270.0,0.4283]
[1757186750366,0.0044,4269.6,4269.5,0.4395]
[1757186750562,3.4492,4269.6,4269.5,0.4395]
[1757186751284,3.4505,4269.6,4269.5,0.4395]
[1757186752382,3.4492,4269.6,4269.5,0.4395]
[1757186753074,3.4505,4269.6,4269.5,0.4395]
[1757186753273,3.4505,4269.6,4269.5,0.3114]
[1757186754585,3.4505,4269.6,4269.5,0.4351]
[1757186755273,3.4492,4269.6,4269.5,0.4351]
[1757186755985,3.2122,4269.6,4269.5,0.6334]
[1757186756189,3.4492,4269.6,4269.5,0.6334]
[1757186760683,3.2122,4269.6,4269.5,0.6334]
[1757186760878,3.2122,4269.6,4269.5,0.8456]
[1757186761085,3.4448,4269.6,4269.5,0.8456]
[1757186761484,3.447,4269.6,4269.5,0.8456]
[1757186763293,4.05992529,4269.6,4269.5,0.8456]
[1757186763889,3.82292529,4269.6,4269.5,0.8456]
[1757186764088,4.05992529,4269.6,4269.5,0.8456]
[1757186764288,4.20042873,4269.6,4269.5,0.8456]
[1757186765283,4.19822873,4269.6,4269.5,0.8456]
[1757186766882,4.20042873,4269.6,4269.5,0.8456]
[1757186768187,3.96342873,4269.6,4269.5,0.8456]
[1757186768887,4.20042873,4269.6,4269.5,0.8456]
[1757186769186,4.19822873,4269.6,4269.5,0.8456]
[1757186769896,4.20042873,4269.6,4269.5,0.8456]
[1757186771197,5.45904287,4269.6,4269.5,0.8456]